bitfinex-derivatives/quotes_ETHF0:USTF0_20210407
["timestamp","ask_amount","ask_price","bid_price","bid_amount"]
[1617759291057,2.90695,2088.7,2087.2,5.84]
[1617759291258,3.0094,2088.9,2087.5,2.90695]
[1617759291457,3.0094,2088.9,2087.6,32.86]
[1617759291859,4.91,2089.5,2087.6,32.86]
[1617759293259,4.91,2089.5,2087.9,2.90695]
[1617759293659,4.91,2089.5,2088.0,5.93]
[1617759293859,34.91,2089.5,2087.6,30.0]
[1617759294460,34.91,2089.5,2086.3,2.0]
[1617759294660,12.4691,2089.4,2086.4,30.0]
[1617759294861,2.0,2089.2,2086.4,30.0]
[1617759295060,2.0,2089.0,2086.5,5.83]
[1617759295260,34.1582,2089.0,2087.0,2.90695]
[1617759295460,34.1582,2089.0,2087.1,3.94]
[1617759296061,4.1582,2089.0,2087.1,3.94]
[1617759297261,4.1582,2089.0,2087.5,2.90695]
[1617759297761,4.1582,2089.0,2087.6,5.86]
[1617759299166,2.90695,2087.7,2087.6,5.86]
[1617759299361,5.67065,2087.7,2087.6,5.86]
[1617759301965,5.67065,2087.7,2087.5,2.90695]
[1617759302168,5.67065,2087.7,2086.3,32.0]
[1617759302767,5.67065,2087.7,2086.4,6.03]
[1617759302966,5.67065,2087.7,2086.5,30.0]
[1617759303169,2.7637,2087.7,2087.1,2.90695]
[1617759303770,2.7637,2087.7,2087.2,3.45]
[1617759304670,4.1582,2089.0,2087.2,3.45]
[1617759304869,34.1582,2089.0,2087.2,3.45]
[1617759305170,2.90695,2087.3,2087.2,3.45]
[1617759305370,5.47325,2087.3,2087.2,3.45]
[1617759306070,2.5663,2087.3,2087.2,3.45]
[1617759306470,2.0,2088.8,2087.2,33.45]
[1617759306670,2.0,2088.8,2087.2,36.0689]
[1617759307272,2.0,2088.8,2088.4,2.90695]
[1617759307472,2.0,2088.8,2088.4,1.9453]
[1617759307673,2.0,2088.8,2088.5,5.78]
[1617759308973,2.0,2089.2,2088.5,5.78]
[1617759309374,2.0,2089.2,2088.6,2.90695]
[1617759309574,1.1,2090.2,2088.7,5.92]
[1617759309775,1.1,2090.2,2088.8,30.0]
[1617759310175,1.1,2090.2,2088.9,5.94]
[1617759310375,1.1,2090.2,2089.0,30.0]
[1617759310776,1.1,2090.2,2089.1,5.78]
[1617759310978,1.1,2090.2,2089.1,35.78]
[1617759311377,1.1,2090.2,2089.5,2.90695]
[1617759311776,1.1,2090.2,2089.6,5.97]
[1617759313286,2.90695,2089.7,2089.6,5.97]
[1617759317689,2.90695,2089.7,2089.5,2.90695]
[1617759319291,2.90695,2089.7,2089.6,5.79]
[1617759319489,2.90695,2089.7,2089.6,7.6729]
[1617759320290,2.90695,2089.7,2089.6,1.8829]
[1617759320489,2.90695,2089.7,2089.5,2.90695]
[1617759320692,5.90795,2089.7,2089.5,2.90695]
[1617759320889,5.90795,2089.7,2088.7,30.0]
[1617759321293,3.001,2089.7,2089.0,2.90695]
[1617759321890,3.001,2089.7,2089.1,5.74]
[1617759323392,2.90695,2089.2,2089.1,5.74]
[1617759323592,2.90695,2089.2,2088.3,2.90695]
[1617759323593,5.61775,2089.2,2088.3,2.90695]
[1617759323992,5.61775,2089.2,2087.6,30.0]
[1617759324192,5.61775,2089.2,2088.4,5.79]
[1617759324395,5.61775,2089.2,2087.6,30.0]
[1617759324798,7.61775,2089.2,2087.6,30.0]
[1617759325195,7.61775,2089.2,2087.7,5.84]
[1617759325394,2.90695,2087.8,2087.7,5.84]
[1617759325595,5.91545,2087.8,2087.7,5.84]
[1617759326793,5.91545,2087.8,2087.4,5.86]
[1617759326994,5.91545,2087.8,2087.7,6.02]
[1617759327395,5.91545,2087.8,2087.4,6.0]
[1617759327597,5.91545,2087.8,2087.3,30.0]
[1617759327598,5.91545,2087.8,2087.7,5.76]
[1617759327898,5.91545,2087.8,2087.4,5.84]
[1617759329198,15.0,2089.0,2087.4,35.84]
[1617759329399,15.0,2089.0,2088.3,2.90695]
[1617759329598,15.0,2089.0,2088.3,5.79245]
[1617759329799,15.0,2089.0,2088.4,5.98]
[1617759330400,15.0,2089.0,2087.5,5.87]
[1617759330602,15.0,2089.0,2087.5,35.87]
[1617759331003,15.0,2089.0,2087.5,30.0]
[1617759331403,15.0,2089.0,2087.7,2.90695]
[1617759331606,2.8143,2089.2,2087.7,2.90695]
[1617759331803,4.8143,2089.2,2087.8,5.88]
[1617759333407,2.90695,2087.9,2087.8,5.88]
[1617759334606,15.0,2089.0,2087.8,5.88]
[1617759334807,15.0,2089.0,2087.8,35.88]
[1617759335408,15.0,2089.0,2088.5,2.90695]
[1617759335609,13.6657,2089.5,2088.5,5.13425]
[1617759336010,13.6657,2089.5,2088.6,5.87]
[1617759337413,2.90695,2088.7,2088.6,5.87]
[1617759338717,13.6657,2089.5,2088.6,5.87]
[1617759338916,13.0101,2089.6,2088.6,37.9005]
[1617759339517,13.0101,2089.6,2089.0,2.90695]
[1617759339920,13.0101,2089.6,2089.1,6.03]
[1617759341319,13.0101,2089.6,2089.0,2.90695]
[1617759341518,2.90695,2089.1,2088.0,32.0]
[1617759342119,2.90695,2089.1,2087.8,30.0]
[1617759342321,4.72735,2089.1,2088.1,5.78]
[1617759342720,4.72735,2089.1,2087.9,5.76]
[1617759342919,4.72735,2089.1,2088.0,30.0]
[1617759343120,4.72735,2089.1,2088.2,5.93]
[1617759343320,4.72735,2089.1,2088.1,3.29]
[1617759343521,2.90695,2088.2,2088.1,6.19695]
[1617759343721,2.90695,2088.2,2088.1,2.90695]
[1617759343921,2.90695,2088.2,2088.1,8.83695]
[1617759345224,2.90695,2088.2,2088.1,38.83695]
[1617759346024,13.0101,2089.6,2088.1,38.83695]
[1617759346224,13.0101,2089.6,2088.1,41.11835]
[1617759346625,15.8136,2090.2,2088.1,41.11835]
[1617759347025,13.8136,2090.2,2088.2,2.0]
[1617759347223,13.8136,2090.2,2088.4,2.0]
[1617759347426,13.8136,2090.2,2089.4,2.90695]
[1617759347625,13.8136,2090.2,2089.4,5.44195]
[1617759348026,13.8136,2090.2,2089.5,5.97]
[1617759348927,1.1,2090.2,2089.5,5.97]
[1617759349529,2.90695,2089.6,2089.5,5.97]
[1617759349727,2.90695,2089.6,2089.5,35.97]
[1617759350528,1.1,2090.2,2089.5,35.97]
[1617759350729,0.05639832,2090.8,2089.5,35.97]
[1617759351130,2.571,2090.9,2089.5,35.97]
[1617759351131,2.62739487,2090.9,2089.5,35.97]
[1617759351529,2.571,2090.9,2089.9,2.90695]
[1617759351730,2.571,2090.9,2089.9,34.95545]
[1617759351928,2.571,2090.9,2090.0,5.96]
[1617759353628,2.90695,2090.1,2090.0,5.96]
[1617759354930,2.90695,2090.1,2089.9,2.90695]
[1617759355129,2.90695,2090.1,2088.9,1.9584]
[1617759355328,2.90695,2090.1,2088.8,2.0]
[1617759355530,2.9992,2090.8,2089.6,2.90695]
[1617759355731,3.05559523,2090.8,2089.6,2.90695]
[1617759355932,2.0,2090.7,2089.7,5.85]
[1617759356333,2.0,2090.7,2088.6,30.0]
[1617759356634,0.05639872,2090.6,2088.6,30.0]
[1617759357034,0.05640276,2090.4,2088.7,6.01]
[1617759357734,0.05640421,2090.3,2089.2,2.90695]
[1617759357936,2.12110421,2090.3,2089.2,2.90695]
[1617759358136,2.12110421,2090.3,2089.3,5.77]
[1617759358337,2.0647,2090.3,2089.3,5.77]
[1617759358936,2.0,2090.2,2089.3,5.77]
[1617759359536,2.90695,2089.4,2089.3,5.77]
[1617759362044,2.90695,2089.4,2088.1,32.0]
[1617759362243,2.90695,2089.4,2088.1,30.0]
[1617759362843,2.90695,2089.4,2088.2,5.74]
[1617759363044,2.90695,2089.4,2088.2,35.74]
[1617759363243,2.0,2089.3,2088.2,35.74]
[1617759363644,2.0,2089.3,2088.2,30.0]
[1617759363645,2.90695,2088.3,2088.2,30.0]
[1617759364048,2.90695,2088.3,2088.2,30.44]
[1617759365653,0.05641026,2089.9,2088.2,30.44]
[1617759365852,0.05641026,2089.9,2088.2,32.8379]
[1617759366253,15.3543,2090.0,2088.2,32.8379]
[1617759366753,13.3543,2090.0,2088.2,32.8379]
[1617759367555,13.3543,2090.0,2089.0,2.90695]
[1617759368154,13.3543,2090.0,2089.1,6.0]
[1617759369658,2.90695,2089.2,2089.1,6.0]
[1617759377172,2.90695,2089.2,2088.4,30.0]
[1617759377774,2.90695,2089.2,2087.6,30.0]
[1617759377972,2.4003,2089.6,2088.7,2.90695]
[1617759378176,2.4003,2089.6,2087.6,35.98]
[1617759378379,4.4003,2089.6,2087.6,35.98]
[1617759379877,4.4003,2089.6,2087.8,2.90695]
[1617759380076,4.4003,2089.6,2087.8,32.90695]
[1617759380276,4.4003,2089.6,2087.9,5.99]
[1617759381875,2.90695,2088.0,2087.9,5.99]
[1617759382276,2.90695,2088.0,2087.1,30.0]
[1617759383076,2.90695,2088.0,2086.2,7.07794016]
[1617759383077,2.90695,2088.0,2087.2,5.86]
[1617759383679,2.90695,2088.0,2086.4,5.83]
[1617759383877,12.5147,2088.2,2087.3,5.82]
[1617759384277,12.5147,2088.2,2087.0,2.90695]
[1617759384884,12.5147,2088.2,2087.1,6.0]
[1617759385084,2.0,2088.1,2087.1,6.0]
[1617759385984,2.90695,2087.2,2087.1,6.0]
[1617759386187,5.26525,2087.2,2087.1,6.0]
[1617759386590,5.26525,2087.2,2086.7,5.9]
[1617759387988,2.90695,2086.8,2086.4,2.90695]
[1617759388189,2.90695,2086.8,2086.4,32.90695]
[1617759388389,2.90695,2086.8,2086.5,3.66]
[1617759389895,2.90695,2086.8,2086.7,2.90695]
[1617759390295,2.90695,2086.8,2086.7,8.81695]
[1617759391197,25.4382,2088.2,2086.7,8.81695]
[1617759391399,25.4382,2088.2,2086.8,30.0]
[1617759391799,25.4382,2088.2,2086.9,5.79]
[1617759392006,25.4382,2088.2,2087.5,2.90695]
[1617759392199,12.5147,2088.2,2087.5,5.42665]
[1617759392398,12.5147,2088.2,2087.6,5.89]
[1617759392999,0.05624711,2089.2,2087.6,35.89]
[1617759393401,0.05627296,2089.4,2087.6,35.89]
[1617759393800,15.48739953,2089.7,2087.6,35.89]
[1617759394003,15.4311,2089.7,2088.6,2.90695]
[1617759394201,15.4311,2089.7,2088.6,5.86305]
[1617759394403,13.4311,2089.7,2088.7,5.76]
[1617759395104,2.0,2089.6,2088.7,5.76]
[1617759396004,2.90695,2088.8,2088.7,5.76]
[1617759397910,2.90695,2088.8,2088.1,2.90695]
[1617759398709,2.90695,2088.8,2088.2,6.02]
[1617759399909,2.90695,2088.3,2088.2,6.02]
[1617759400909,2.90695,2088.3,2087.7,5.91]
[1617759401710,2.90695,2088.3,2087.0,5.86]
[1617759401912,2.4643,2089.0,2087.7,2.90695]
[1617759402112,0.05615846,2089.3,2087.8,5.88]
[1617759402311,0.05615846,2089.3,2087.7,32.90695]
[1617759402710,0.05615846,2089.3,2087.8,6.01]
[1617759402910,0.05615846,2089.3,2087.8,38.2829]
[1617759403510,0.0562474,2089.4,2087.8,38.2829]
[1617759403910,0.0562474,2089.4,2089.2,2.90695]
[1617759404112,13.4311,2089.7,2089.2,4.96045]
[1617759404513,13.4311,2089.7,2089.3,5.85]
[1617759405313,12.4482,2090.0,2089.3,5.85]
[1617759405915,12.4482,2090.0,2089.5,2.90695]
[1617759406515,12.4482,2090.0,2089.6,5.79]
[1617759407916,2.90695,2089.7,2089.6,5.79]
[1617759409117,2.90695,2089.7,2089.3,5.95]
[1617759409316,2.90695,2089.7,2089.2,32.0535]
[1617759409317,2.90695,2089.7,2089.6,5.95]
[1617759409717,2.90695,2089.7,2089.3,5.91]
[1617759409917,2.90695,2089.7,2089.6,8.65695]
[1617759410323,2.90695,2089.7,2089.3,5.98]
[1617759410527,5.33255,2089.7,2088.5,35.84]
[1617759410716,5.33255,2089.7,2088.5,30.0]
[1617759411118,7.33255,2089.7,2088.5,30.0]
[1617759411323,5.33255,2089.7,2088.6,5.75]
[1617759411521,5.33255,2089.7,2088.6,35.75]
[1617759411918,5.33255,2089.7,2088.6,30.0]
[1617759412118,2.90695,2088.7,2088.6,32.90695]
[1617759412319,5.27675,2088.7,2088.6,30.0]
[1617759412518,5.27675,2088.7,2088.6,35.77]
[1617759413518,2.90695,2088.7,2088.6,35.77]
[1617759414720,2.90695,2088.7,2088.6,5.77]
[1617759416019,2.90695,2088.7,2087.8,30.0]
[1617759416020,2.90695,2088.7,2088.0,2.90695]
[1617759416521,2.90695,2088.7,2087.8,30.0]
[1617759416721,2.90695,2088.7,2088.1,5.82]
[1617759416922,2.90695,2088.7,2088.2,30.0]
[1617759417124,2.90695,2088.7,2088.3,3.54]
[1617759417328,2.90695,2088.7,2088.4,30.0]
[1617759417724,2.90695,2088.7,2088.5,5.83]
[1617759417924,2.90695,2088.7,2088.5,35.83]
[1617759418125,2.90695,2088.7,2088.6,2.90695]
[1617759418324,2.90695,2088.7,2088.6,35.60245]
[1617759418527,2.90695,2088.7,2088.6,38.31245]
[1617759419027,13.5451,2090.0,2088.6,38.31245]
[1617759420031,13.5451,2090.0,2089.3,2.90695]
[1617759420230,2.571,2090.1,2089.3,35.77435]
[1617759420630,2.571,2090.1,2089.4,5.98]
[1617759421932,4.571,2090.1,2089.3,2.90695]
[1617759422133,2.90695,2089.4,2089.3,2.90695]
[1617759423131,2.90695,2089.4,2089.3,8.75695]
[1617759424135,2.90695,2089.4,2089.3,38.75695]
[1617759425837,27.28960097,2090.7,2089.3,38.75695]
[1617759426038,27.2333,2090.7,2090.2,2.90695]
[1617759426238,27.2333,2090.7,2090.2,5.35015]
[1617759426641,27.2333,2090.7,2090.3,6.01]
[1617759428041,2.90695,2090.4,2090.3,6.01]
[1617759429242,2.90695,2090.4,2090.3,36.01]
[1617759430045,2.90695,2090.4,2090.3,38.91695]
[1617759434649,0.05631046,2091.4,2090.3,38.91695]
[1617759435852,0.05630761,2091.5,2090.3,38.91695]
[1617759436256,0.05630761,2091.5,2090.8,2.90695]
[1617759436456,0.05627915,2091.6,2090.8,4.98915]
[1617759436654,0.05627915,2091.6,2090.9,6.01]
[1617759437257,0.05628162,2091.5,2090.3,30.0]
[1617759437456,0.05628162,2091.5,2089.5,2.0]
[1617759437656,0.05628162,2091.5,2089.6,30.0]
[1617759438057,0.05628162,2091.5,2089.7,5.73]
[1617759438260,0.05628162,2091.5,2090.4,2.90695]
[1617759438457,0.05628162,2091.5,2090.5,5.95]
[1617759439457,2.69242696,2091.6,2090.5,5.95]
[1617759440061,0.05622696,2091.6,2090.5,5.95]
[1617759440260,2.90695,2090.6,2090.5,5.95]
[1617759446167,2.90695,2090.6,2090.5,35.95]
[1617759446370,2.62722539,2091.8,2090.5,35.95]
[1617759446569,2.571,2091.8,2090.5,37.8164]
[1617759447370,0.0562197,2092.0,2090.5,39.8164]
[1617759447569,16.5,2091.0,2090.5,39.8164]
[1617759448172,16.5,2091.0,2090.9,2.90695]
[1617759448670,16.5,2091.0,2090.9,8.87695]
[1617759449672,16.5,2091.0,2090.9,38.87695]
[1617759450072,0.05617684,2092.3,2090.9,38.87695]
[1617759450273,2.90695,2091.0,2090.9,38.87695]
[1617759452675,0.05611015,2092.3,2090.9,38.87695]
[1617759453279,2.05610923,2092.4,2090.9,38.87695]
[1617759454179,2.05610923,2092.4,2091.5,2.90695]
[1617759454380,2.0,2092.4,2091.5,5.79965]
[1617759454779,2.0,2092.4,2091.6,5.86]
[1617759456183,2.90695,2091.7,2091.6,5.86]
[1617759458786,2.0,2092.4,2091.6,5.86]
[1617759459187,2.0,2092.5,2091.6,5.86]
[1617759459586,2.0,2092.5,2091.1,6.02]
[1617759459987,2.0,2092.5,2091.7,5.85]
[1617759460187,2.0,2092.5,2091.1,5.73]
[1617759460388,2.0,2092.5,2091.2,2.90695]
[1617759460587,2.0,2092.5,2091.8,5.93]
[1617759460788,2.0,2092.5,2091.3,35.96]
[1617759460989,2.0,2092.5,2091.4,5.99]
[1617759461189,2.0,2092.5,2091.3,30.0]
[1617759461190,2.0,2092.5,2091.9,5.98]
[1617759461389,2.0,2092.5,2091.4,5.81]
[1617759461588,4.3904,2092.5,2091.4,5.81]
[1617759461793,34.3904,2092.5,2086.7,8.37014406]
[1617759461989,35.4904,2092.5,2087.5,5.02416765]
[1617759462390,35.4904,2092.5,2090.3,2.90695]
[1617759462790,35.54642182,2092.5,2090.4,5.84]
[1617759462990,5.4904,2092.5,2090.4,5.84]
[1617759463390,5.4904,2092.5,2090.4,35.84]
[1617759464392,2.90695,2091.5,2091.4,2.90695]
[1617759464592,2.90695,2091.5,2091.4,8.76695]
[1617759465392,5.77555,2091.5,2091.4,5.86]
[1617759465593,5.77555,2091.5,2090.4,30.0]
[1617759466195,16.5,2091.0,2090.5,5.95]
[1617759466394,2.90695,2090.6,2090.5,5.95]
[1617759467594,2.90695,2090.6,2088.0,0.9497]
[1617759467796,2.90695,2090.6,2089.3,30.0]
[1617759468296,2.0,2090.9,2089.4,8.82695]
[1617759470402,2.0,2090.9,2089.8,2.90695]
[1617759470803,2.0,2090.9,2089.9,5.76]
[1617759472305,2.90695,2090.0,2089.9,5.76]
[1617759472505,5.74885,2090.0,2089.9,5.76]
[1617759473108,6.71585,2090.0,2089.9,5.76]
[1617759473309,5.74885,2090.0,2089.9,5.76]
[1617759474608,5.74885,2090.0,2089.5,2.90695]
[1617759474909,5.74885,2090.0,2089.9,5.81]
[1617759475107,5.74885,2090.0,2089.5,2.90695]
[1617759475910,5.74885,2090.0,2089.6,5.83]
[1617759476512,2.90695,2090.0,2089.6,5.83]
[1617759478314,2.0,2090.9,2089.8,2.90695]
[1617759478815,2.0,2090.9,2089.9,5.92]
[1617759479417,2.571,2091.0,2089.6,5.87]
[1617759479617,2.1624,2090.9,2089.6,5.87]
[1617759480418,2.1624,2090.9,2089.8,2.90695]
[1617759480619,2.0,2090.8,2089.9,2.84]
[1617759481020,2.0,2090.8,2089.3,5.9]
[1617759482023,2.0,2090.8,2088.6,30.0]
[1617759482221,2.0,2090.8,2088.7,5.96]
[1617759482423,2.0,2090.8,2089.4,8.81695]
[1617759482621,2.0,2090.8,2089.4,2.90695]
[1617759483021,2.0,2090.8,2089.5,5.91]
[1617759484322,2.90695,2089.6,2089.5,5.91]
[1617759490433,5.78065,2089.6,2089.5,5.91]
[1617759492438,5.78065,2089.6,2089.0,2.90695]
[1617759493239,5.78065,2089.6,2089.1,5.73]
[1617759494443,2.90695,2089.2,2089.1,5.73]
[1617759496043,2.90695,2089.2,2088.1,32.0]
[1617759496643,2.90695,2088.9,2088.7,2.90695]
[1617759496845,2.90695,2088.9,2088.8,5.81]
[1617759497444,2.90695,2088.9,2088.8,35.81]
[1617759499944,2.8737,2089.6,2088.8,35.81]
[1617759500145,16.5,2090.0,2088.8,35.81]
[1617759500546,16.5,2090.0,2089.8,2.90695]
[1617759500946,16.5,2090.0,2089.9,5.94]
[1617759502049,13.6904,2090.2,2089.9,5.94]
[1617759502648,2.90695,2090.0,2089.9,5.94]
[1617759503851,2.90695,2090.0,2089.9,35.94]
[1617759504551,2.90695,2090.7,2089.9,35.94]
[1617759504751,2.90695,2090.7,2089.9,38.5081]
[1617759506553,2.90695,2090.7,2090.6,2.90695]
[1617759506853,2.90695,2090.7,2090.6,8.83695]
[1617759508153,2.90695,2090.7,2090.6,5.93]
[1617759508553,2.90695,2090.7,2090.6,8.83695]
[1617759508754,2.90695,2090.7,2090.6,2.90695]
[1617759508954,2.90695,2090.7,2090.6,8.75695]
[1617759511360,2.90695,2090.7,2090.6,40.58805]
[1617759514560,2.90695,2090.7,2090.6,10.58805]
[1617759514760,2.90695,2090.7,2090.6,8.75695]
[1617759514963,5.75235,2090.7,2090.6,8.75695]
[1617759520772,2.90695,2090.7,2090.6,8.75695]
[1617759523074,2.90695,2090.7,2090.6,5.85]
[1617759523472,2.90695,2090.7,2089.8,5.99]
[1617759524675,16.5,2091.0,2090.3,2.90695]
[1617759525074,16.5,2091.0,2090.4,6.02]
[1617759526775,2.90695,2090.5,2090.4,6.02]
[1617759526975,5.35025,2090.5,2090.4,6.02]
[1617759529584,5.35025,2091.0,2090.4,6.02]
[1617759530786,5.35025,2091.0,2090.9,2.90695]
[1617759531186,5.35025,2091.0,2090.9,8.72695]
[1617759537393,5.35025,2091.0,2090.9,11.54065]
[1617759538395,5.35025,2091.0,2090.9,41.54065]
[1617759538996,5.35025,2091.0,2090.9,43.54065]
[1617759546701,0.05625894,2093.0,2090.9,43.54065]
[1617759546902,1.15625389,2093.1,2092.9,2.90695]
[1617759547101,1.15625389,2093.1,2092.9,2.3108]
[1617759547301,1.1,2093.1,2092.9,2.3108]
[1617759547502,1.1,2093.1,2093.0,5.74]
[1617759547702,1.1,2093.1,2092.9,2.3108]
[1617759548902,2.90695,2093.0,2092.9,2.3108]
[1617759549702,2.90695,2093.0,2092.6,2.90695]
[1617759549903,2.90695,2093.0,2090.9,34.8137]
[1617759550103,2.90695,2093.0,2090.9,32.0]
[1617759550303,5.5342036,2093.0,2091.0,30.0]
[1617759550503,2.0,2092.9,2091.0,36.0]
[1617759550704,15.42645689,2092.9,2091.0,36.0]
[1617759550904,15.42645689,2092.9,2092.0,2.90695]
[1617759551102,0.05626681,2092.8,2092.0,2.90695]
[1617759551304,0.05626681,2092.8,2091.0,36.0]
[1617759551503,0.05626681,2092.8,2092.1,5.73]
[1617759551703,0.05626681,2092.8,2091.1,5.77]
[1617759551903,0.05626754,2092.7,2091.2,30.0]
[1617759552104,2.21076754,2092.7,2091.2,30.0]
[1617759552305,2.21076754,2092.7,2091.3,6.01]
[1617759552507,2.21076754,2092.7,2091.3,36.01]
[1617759552911,2.1545,2092.7,2092.5,2.90695]
[1617759554214,2.1545,2092.7,2091.3,30.0]
[1617759554914,2.1545,2092.7,2092.1,2.90695]
[1617759555113,2.21076733,2092.7,2092.1,2.90695]
[1617759555313,2.21076733,2092.7,2092.2,5.75]
[1617759555714,2.1545,2092.7,2091.5,5.94]
[1617759555914,2.1545,2092.7,2091.6,30.0]
[1617759556115,15.3702,2092.9,2092.3,5.8]
[1617759556314,15.3702,2092.9,2091.6,30.0]
[1617759556315,13.3702,2092.9,2092.0,2.6475]
[1617759556717,13.3702,2092.9,2092.4,5.73]
[1617759556916,13.3702,2092.9,2092.1,5.97]
[1617759557116,13.3702,2092.9,2092.5,2.90695]
[1617759557316,13.3702,2092.9,2092.5,8.88695]
[1617759557516,13.3702,2092.9,2092.5,2.90695]
[1617759559018,2.90695,2092.6,2091.7,30.0]
[1617759559617,2.90695,2092.6,2091.0,1.9669]
[1617759559818,2.90695,2092.6,2091.8,5.8]
[1617759560019,2.90695,2092.6,2091.1,5.9]
[1617759560420,2.90695,2092.6,2090.8,30.0]
[1617759560820,2.90695,2092.6,2091.2,5.78]
[1617759561020,45.4293,2092.9,2091.2,8.68695]
[1617759561021,2.90695,2091.3,2091.2,8.68695]
[1617759561220,5.45455,2091.3,2090.9,5.81]
[1617759561420,5.45455,2091.3,2091.2,5.77]
[1617759561822,5.45455,2091.3,2090.2,30.0]
[1617759562618,5.45455,2091.3,2090.3,5.94]
[1617759562819,5.45455,2091.3,2090.3,35.94]
[1617759563020,2.5476,2091.3,2091.2,2.90695]
[1617759563222,5.72721202,2092.4,2091.2,2.90695]
[1617759563422,5.671,2092.4,2091.2,8.82695]
[1617759565123,5.671,2092.4,2091.7,2.90695]
[1617759567027,2.90695,2091.8,2091.7,2.90695]
[1617759568927,2.90695,2091.8,2090.1,32.0]
[1617759569130,2.9582,2091.8,2090.1,32.0]
[1617759569328,2.9582,2091.8,2090.2,30.0]
[1617759569728,2.9582,2091.8,2090.2,37.8964]
[1617759570328,13.2513,2092.3,2090.2,37.8964]
[1617759570528,13.2513,2092.3,2090.2,39.8964]
[1617759571029,13.2513,2092.3,2091.8,2.90695]
[1617759571228,13.2513,2092.3,2091.8,5.45035]
[1617759571829,13.2513,2092.3,2091.9,5.88]
[1617759573030,2.90695,2092.0,2091.9,5.88]
[1617759574431,19.40695,2092.0,2091.9,5.88]
[1617759575334,2.90695,2092.0,2091.9,5.88]
[1617759580938,2.90695,2092.0,2091.9,35.88]
[1617759581540,19.40695,2092.0,2091.9,35.88]
[1617759583140,2.90695,2092.0,2091.9,35.88]
[1617759584541,19.40695,2092.0,2091.9,35.88]
[1617759584942,19.40695,2092.0,2091.9,5.88]
[1617759585742,2.90695,2092.0,2091.9,5.88]
[1617759586744,19.40695,2092.0,2091.9,5.88]
[1617759587943,2.90695,2092.0,2091.9,5.88]
[1617759589948,2.90695,2092.0,2091.9,35.88]
[1617759592450,19.40695,2092.0,2091.9,35.88]
[1617759593251,19.40695,2092.0,2091.9,37.88]
[1617759593454,2.90695,2092.0,2091.9,37.88]
[1617759593654,2.28455,2092.0,2091.9,37.88]
[1617759594654,5.29765,2092.0,2091.9,37.88]
[1617759594854,5.29765,2092.0,2091.9,35.88]
[1617759595053,5.29765,2092.0,2091.9,5.88]
[1617759596955,5.29765,2092.0,2091.8,2.90695]
[1617759597356,2.90695,2091.9,2091.5,2.90695]
[1617759597957,2.90695,2091.9,2091.6,5.92]
[1617759598357,2.90695,2091.9,2091.5,2.90695]
[1617759598960,4.90695,2091.9,2091.5,2.90695]
[1617759599159,2.90695,2091.6,2091.5,2.90695]
[1617759599560,2.90695,2091.6,2089.7,32.0]
[1617759600259,2.90695,2091.6,2089.8,5.74]
[1617759600461,2.90695,2091.6,2089.9,30.0]
[1617759600660,13.4503,2091.8,2089.9,30.0]
[1617759600859,13.4503,2091.8,2090.0,6.02]
[1617759601060,13.4503,2091.8,2090.1,30.0]
[1617759601262,13.4503,2091.8,2091.7,2.90695]
[1617759609871,13.4503,2091.8,2091.7,4.73395]
[1617759610072,13.4503,2091.8,2091.7,10.68395]
[1617759610273,2.28455,2092.0,2091.7,10.68395]
[1617759610473,2.28455,2092.0,2091.7,40.68395]
[1617759615583,18.78455,2092.0,2091.7,40.68395]
[1617759616484,2.28455,2092.0,2091.7,40.68395]
[1617759616683,2.28455,2092.0,2091.7,41.62865]
[1617759617085,5e-05,2092.0,2091.7,43.62865]
[1617759617284,2.571,2093.6,2091.7,43.62865]
[1617759618284,2.90695,2093.8,2091.7,43.62865]
[1617759618485,12.73521279,2094.0,2091.7,43.62865]
[1617759618486,12.6789,2094.0,2091.7,43.62865]
[1617759619482,12.6789,2094.0,2093.9,2.90695]
[1617759619684,12.6789,2094.0,2093.9,5.89135]
[1617759619884,12.6789,2094.0,2093.9,11.69135]
[1617759621387,2.90695,2094.1,2093.9,11.69135]
[1617759622786,2.571,2094.5,2093.9,11.69135]
[1617759623386,2.90695,2094.5,2094.4,2.90695]
[1617759623585,2.90695,2094.5,2094.4,4.82305]
[1617759623787,2.90695,2094.5,2094.4,10.60305]
[1617759624485,1.01569851,2095.1,2094.4,10.60305]
[1617759625486,0.9596,2095.1,2094.9,2.90695]
[1617759625888,1.01569695,2095.1,2094.9,2.90695]
[1617759627587,0.05615924,2095.0,2094.9,2.90695]
[1617759628288,1.01575862,2095.1,2094.9,2.90695]
[1617759628487,1.01575862,2095.1,2094.9,5.34705]
[1617759628892,1.01575862,2095.1,2095.0,6.0]
[1617759629491,2.90695,2095.1,2095.0,6.0]
[1617759629692,2.90695,2095.1,2093.4,32.0]